fUSD/lending_fUSD_20240629
["ID","MTS","AMOUNT","RATE_DAILY","PERIOD"]
[330662706,1719697860795,-500.0,0.00013808,3]
[330662707,1719697860804,-810.82,0.00013808,3]
[330662708,1719697860814,-500.0,0.00013808,3]
[330662709,1719697860823,-1251.58,0.00013808,3]
[330662710,1719697860832,-551.6,0.00013808,3]
[330662711,1719697860842,-1029.44,0.00013808,3]
[330662712,1719697860851,-500.0,0.00013808,3]
[330662713,1719697860861,-1033.08,0.00013808,3]
[330662714,1719697860870,-463.39950532,0.00013808,3]
[330662715,1719697860880,-500.0,0.00013808,3]
[330662716,1719697860890,-615.75,0.00013808,3]
[330662717,1719697860899,-800.76,0.00013808,3]
[330662718,1719697860909,-500.0,0.00013808,3]
[330662719,1719697860919,-500.0,0.00013808,3]
[330662720,1719697860928,-1191.78,0.00013808,3]
[330662721,1719697860938,-500.0,0.00013808,3]
[330662722,1719697860948,-500.0,0.00013808,3]
[330662723,1719697860957,-500.0,0.00013808,3]
[330662724,1719697860967,-500.0,0.00013808,3]
[330662725,1719697860976,-1070.15,0.00013808,3]
[330662726,1719697860986,-1330.56,0.00013808,3]
[330662727,1719697860995,-500.0,0.00013808,3]
[330662728,1719697861005,-500.0,0.00013808,3]
[330662729,1719697861014,-500.0,0.00013808,3]
[330662730,1719697861023,-500.0,0.00013808,3]
[330662731,1719697861032,-500.0,0.00013808,3]
[330662732,1719697861042,-500.0,0.00013808,3]
[330662733,1719697861365,-500.0,0.00013808,3]
[330662734,1719697861382,-1210.18,0.00013808,3]
[330662735,1719697861392,-652.67,0.00013808,3]
[330662736,1719697861401,-528.49,0.00013808,3]
[330662737,1719697861412,-500.0,0.00013808,3]
[330662738,1719697861421,-593.77,0.00013808,3]
[330662739,1719697861431,-567.39,0.00013808,3]
[330662740,1719697861440,-1523.82,0.00013808,3]
[330662741,1719697861453,-1328.61,0.00013808,3]
[330662742,1719697861464,-500.0,0.00013808,3]
[330662743,1719697861474,-812.86,0.00013808,3]
[330662744,1719697861483,-734.19,0.00013808,3]
[330662745,1719697861493,-500.0,0.00013808,3]
[330662746,1719697861503,-708.61,0.00013808,3]
[330662747,1719697861512,-1932.72,0.00013808,3]
[330662748,1719697861522,-557.64,0.00013808,3]
[330662749,1719697861531,-1643.79,0.00013808,3]
[330662750,1719697861541,-496.99551182,0.00013808,3]
[330662751,1719697861551,-1505.88,0.00013808,3]
[330662752,1719697861560,-664.71,0.00013808,3]
[330662753,1719697861570,-993.46,0.00013808,3]
[330662754,1719697861580,-1870.08,0.00013808,3]
[330662755,1719697861594,-833.32,0.00013808,3]
[330662756,1719697861604,-2689.06,0.00013808,3]
[330662757,1719697861616,-958.0,0.00013808,3]
[330662758,1719697861625,-500.0,0.00013808,3]
[330662759,1719697861635,-500.0,0.00013808,3]
[330662760,1719697861644,-521.34,0.00013808,3]
[330662761,1719697861654,-577.62,0.00013808,3]
[330662762,1719697861663,-524.0,0.00013808,3]
[330662763,1719697861673,-500.0,0.00013808,3]
[330662764,1719697861682,-500.0,0.00013808,3]
[330662765,1719697861691,-539.93,0.00013808,3]
[330662766,1719697861701,-1281.46,0.00013808,3]
[330662767,1719697861711,-707.54,0.00013808,3]
[330662768,1719697861720,-658.65,0.00013808,3]
[330662769,1719697861731,-1446.63,0.00013808,3]
[330662770,1719697861740,-528.37,0.00013808,3]
[330662771,1719697861750,-882.5,0.00013808,3]
[330662772,1719697861760,-163.81379941,0.00013808,3]
[330662773,1719697861770,-1105.01,0.00013808,3]
[330662774,1719697861780,-500.0,0.00013808,3]
[330662775,1719697861790,-1668.36,0.00013808,3]
[330662776,1719697861799,-603.2,0.00013808,3]
[330662777,1719697861808,-500.0,0.00013808,3]
[330662778,1719697861817,-998.81,0.00013808,3]
[330662779,1719697861826,-500.0,0.00013808,3]
[330662780,1719697861837,-744.78,0.00013808,3]
[330662781,1719697861846,-500.0,0.00013808,3]
[330662782,1719697861855,-514.21,0.00013808,3]
[330662783,1719697861864,-1885.59,0.00013808,3]
[330662784,1719697861873,-1284.1,0.00013808,3]
[330662785,1719697861882,-1641.41,0.00013808,3]
[330662786,1719697861891,-967.66,0.00013808,3]
[330662787,1719697861900,-1605.96,0.00013808,3]
[330662788,1719697861909,-945.01,0.00013808,3]
[330662789,1719697861918,-500.0,0.00013808,3]
[330662790,1719697861928,-500.0,0.00013808,3]
[330662791,1719697861937,-500.0,0.00013808,3]
[330662792,1719697861946,-1263.05,0.00013808,3]
[330662793,1719697861955,-500.0,0.00013808,3]
[330662794,1719697861964,-1428.54,0.00013808,3]
[330662795,1719697861973,-1697.34,0.00013808,3]
[330662796,1719697861983,-500.0,0.00013808,3]
[330662797,1719697861992,-764.82,0.00013808,3]
[330662798,1719697862001,-1007.82,0.00013808,3]
[330662799,1719697862011,-803.08,0.00013808,3]
[330662800,1719697862021,-500.0,0.00013808,3]
[330662801,1719697862030,-1297.68,0.00013808,3]
[330662802,1719697862040,-500.0,0.00013808,3]
[330662803,1719697862049,-1256.4,0.00013808,3]
[330662804,1719697862059,-905.93,0.00013808,3]
[330662805,1719697862068,-500.0,0.00013808,3]
[330662806,1719697862077,-1063.17,0.00013808,3]
[330662807,1719697862088,-1953.67,0.00013808,3]
[330662808,1719697862098,-1317.15,0.00013808,3]
[330662809,1719697862107,-500.0,0.00013808,3]
[330662810,1719697862117,-2152.85,0.00013808,3]
[330662811,1719697862126,-770.65,0.00013808,3]
[330662812,1719697862135,-500.0,0.00013808,3]
[330662813,1719697862145,-500.0,0.00013808,3]
[330662814,1719697862154,-532.41,0.00013808,3]
[330662815,1719697862164,-2409.49,0.00013808,3]
[330662816,1719697862176,-500.0,0.00013808,3]
[330662817,1719697862188,-1020.3,0.00013808,3]
[330662818,1719697862197,-500.0,0.00013808,3]
[330662819,1719697862206,-500.0,0.00013808,3]
[330662820,1719697862215,-500.0,0.00013808,3]
[330662821,1719697862225,-323.14,0.00013808,3]
[330662822,1719697862236,-225.43,0.00013808,3]
[330662823,1719697862246,-1043.43,0.00013808,3]
[330662824,1719697862255,-500.0,0.00013808,3]
[330662825,1719697862264,-500.0,0.00013808,3]
[330662826,1719697862274,-500.0,0.00013808,3]
[330662827,1719697862283,-500.0,0.00013808,3]
[330662828,1719697862292,-1653.0,0.00013808,3]
[330662829,1719697862301,-500.0,0.00013808,3]
[330662830,1719697862311,-500.0,0.00013808,3]
[330662831,1719697862320,-881.29,0.00013808,3]
[330662832,1719697862329,-500.0,0.00013808,3]
[330662833,1719697862340,-1135.91,0.00013808,3]
[330662834,1719697862350,-518.14,0.00013808,3]
[330662835,1719697862359,-500.0,0.00013808,3]
[330662836,1719697862372,-500.0,0.00013808,3]
[330662837,1719697862381,-827.18,0.00013808,3]
[330662838,1719697862391,-500.0,0.00013808,3]
[330662839,1719697862400,-1104.85,0.00013808,3]
[330662840,1719697862410,-500.0,0.00013808,3]
[330662841,1719697862419,-1395.85,0.00013808,3]
[330662842,1719697862429,-1977.24,0.00013808,3]
[330662843,1719697862438,-500.0,0.00013808,3]
[330662844,1719697862449,-500.0,0.00013808,3]
[330662845,1719697862459,-500.0,0.00013808,3]
[330662846,1719697862468,-500.0,0.00013808,3]
[330662847,1719697862477,-2002.8,0.00013808,3]
[330662848,1719697862487,-500.0,0.00013808,3]
[330662849,1719697862496,-1107.12,0.00013808,3]
[330662850,1719697862506,-1145.37,0.00013808,3]
[330662851,1719697862516,-578.86,0.00013808,3]
[330662852,1719697862525,-1357.05,0.00013808,3]
[330662853,1719697862535,-500.0,0.00013808,3]
[330662854,1719697862545,-1325.74,0.00013808,3]
[330662855,1719697862555,-612.88,0.00013808,3]
[330662856,1719697862564,-151.0,0.00013808,2]
[330662857,1719697862574,-151.0,0.00013808,2]
[330662858,1719697862584,-162.899544,0.00013808,2]
[330662859,1719697862595,-531.3,0.00013808,3]
[330662860,1719697862605,-500.0,0.00013808,3]
[330662861,1719697862614,-1583.18,0.00013808,3]
[330662862,1719697862624,-1903.53,0.00013808,3]
[330662863,1719697862634,-500.0,0.00013808,3]
[330662864,1719697862644,-974.68,0.00013808,3]
[330662865,1719697862653,-1173.45,0.00013808,3]
[330662866,1719697862662,-655.58,0.00013808,3]
[330662867,1719697862672,-1071.66,0.00013808,3]
[330662868,1719697862682,-1289.06,0.00013808,3]
[330662869,1719697862692,-481.87833189,0.00013808,3]
[330662870,1719697862701,-500.0,0.00013808,3]
[330662871,1719697862711,-1588.5,0.00013808,3]
[330662872,1719697862720,-500.0,0.00013808,3]
[330662873,1719697862730,-500.0,0.00013808,3]
[330662874,1719697862740,-698.01,0.00013808,3]
[330662875,1719697862750,-500.0,0.00013808,3]
[330662876,1719697862761,-721.94,0.00013808,3]
[330662877,1719697862771,-1731.8,0.00013808,3]
[330662878,1719697862780,-1201.53,0.00013808,3]
[330662879,1719697862790,-500.0,0.00013808,3]
[330662880,1719697862800,-1285.08,0.00013808,3]
[330662881,1719697862809,-500.0,0.00013808,3]
[330662882,1719697862818,-1686.09,0.00013808,3]
[330662883,1719697862828,-500.0,0.00013808,3]
[330662884,1719697862839,-522.66091835,0.00013808,3]
[330662885,1719697862853,-500.0,0.00013808,3]
[330662886,1719697862863,-45646.3,0.00013808,3]
[330662887,1719697862873,-500.0,0.00013808,3]
[330662888,1719697862883,-500.0,0.00013808,3]
[330662889,1719697862893,-1850.97,0.00013808,3]
[330662890,1719697862903,-883.33,0.00013808,3]
[330662891,1719697862912,-1153.77,0.00013808,3]
[330662892,1719697862922,-500.0,0.00013808,3]
[330662893,1719697862932,-740.63,0.00013808,3]
[330662894,1719697862941,-500.0,0.00013808,3]
[330662895,1719697862951,-1824.49,0.00013808,3]
[330662896,1719697862961,-952.13,0.00013808,3]
[330662897,1719697862971,-500.0,0.00013808,3]
[330662898,1719697862980,-1348.05,0.00013808,3]
[330662899,1719697862990,-1236.2,0.00013808,3]
[330662900,1719697863000,-1015.54,0.00013808,3]
[330662901,1719697863010,-500.0,0.00013808,3]
[330662902,1719697863020,-3244.88,0.00013808,3]
[330662903,1719697863030,-1365.55,0.00013808,3]
[330662904,1719697863040,-500.0,0.00013808,3]
[330662905,1719697863050,-703.01,0.00013808,3]
[330662906,1719697863060,-500.0,0.00013808,3]
[330662907,1719697863070,-5853.89,0.00013808,3]
[330662908,1719697863079,-500.0,0.00013808,3]
[330662909,1719697863090,-933.24,0.00013808,3]
[330662910,1719697863100,-708.25,0.00013808,2]
[330662911,1719697863110,-500.0,0.00013808,3]
[330662912,1719697863119,-1074.21,0.00013808,3]
[330662913,1719697863129,-585.7,0.00013808,3]
[330662914,1719697863139,-500.0,0.00013808,3]
[330662915,1719697863149,-1013.7,0.00013808,3]
[330662916,1719697863159,-775.91,0.00013808,3]
[330662917,1719697863168,-500.0,0.00013808,3]
[330662918,1719697863177,-1851.76,0.00013808,3]
[330662919,1719697863188,-645.47,0.00013808,3]
[330662920,1719697863198,-2091.76,0.00013808,3]
[330662921,1719697863208,-500.0,0.00013808,3]
[330662922,1719697863218,-1482.82,0.00013808,3]
[330662923,1719697863227,-549.88,0.00013808,3]
[330662924,1719697863237,-500.0,0.00013808,3]
[330662925,1719697863247,-500.0,0.00013808,3]
[330662926,1719697863257,-1075.72,0.00013808,3]
[330662927,1719697863267,-500.0,0.00013808,3]
[330662928,1719697863277,-500.0,0.00013808,3]
[330662929,1719697863287,-500.0,0.00013808,3]
[330662930,1719697863297,-1439.6,0.00013808,3]
[330662931,1719697863306,-500.0,0.00013808,3]
[330662932,1719697863317,-966.29,0.00013808,3]
[330662933,1719697863326,-1322.17,0.00013808,3]
[330662934,1719697863338,-1867.92,0.00013808,3]
[330662935,1719697863348,-500.0,0.00013808,3]
[330662936,1719697863358,-500.0,0.00013808,3]
[330662937,1719697863373,-742.11,0.00013808,3]
[330662938,1719697863393,-625.65,0.00013808,3]
[330662939,1719697863405,-1676.42,0.00013808,3]
[330662940,1719697863415,-860.95,0.00013808,3]
[330662941,1719697863425,-500.0,0.00013808,3]
[330662942,1719697863435,-500.0,0.00013808,3]
[330662943,1719697863444,-625.47,0.00013808,3]
[330662944,1719697863454,-684.56,0.00013808,3]
[330662945,1719697863464,-500.0,0.00013808,3]
[330662946,1719697863474,-1574.73,0.00013808,3]
[330662947,1719697863484,-733.26,0.00013808,3]
[330662948,1719697863493,-500.0,0.00013808,3]
[330662949,1719697863503,-500.0,0.00013808,3]
[330662950,1719697863513,-837.81,0.00013808,3]
[330662951,1719697863523,-500.0,0.00013808,3]
[330662952,1719697863532,-500.0,0.00013808,3]
[330662953,1719697863542,-500.0,0.00013808,3]
[330662954,1719697863552,-5685.01,0.00013808,3]
[330662955,1719697863561,-500.0,0.00013808,3]
[330662956,1719697863570,-500.0,0.00013808,3]
[330662957,1719697863579,-500.0,0.00013808,3]
[330662958,1719697863589,-505.28,0.00013808,3]
[330662959,1719697863599,-500.0,0.00013808,3]
[330662960,1719697863608,-500.0,0.00013808,3]
[330662961,1719697863617,-500.0,0.00013808,3]
[330662962,1719697863626,-500.0,0.00013808,3]
[330662963,1719697863635,-1313.08,0.00013808,3]
[330662964,1719697863644,-1018.92,0.00013808,3]
[330662965,1719697863653,-500.0,0.00013808,3]
[330662966,1719697863662,-500.0,0.00013808,3]
[330662967,1719697863671,-1686.75,0.00013808,3]
[330662968,1719697863680,-909.13,0.00013808,3]
[330662969,1719697863690,-500.0,0.00013808,3]
[330662970,1719697863699,-292.42,0.00013808,3]
[330662971,1719697863709,-500.0,0.00013808,3]
[330662972,1719697863838,-500.0,0.00013808,3]
[330662973,1719697863847,-1118.48,0.00013808,3]
[330662974,1719697863857,-1145.27,0.00013808,3]
[330662975,1719697863866,-201.10544741,0.00013808,3]
[330662976,1719697863875,-301.99038492,0.00013808,3]
[330662977,1719697863884,-1391.8,0.00013808,3]
[330662978,1719697863894,-500.0,0.00013808,3]
[330662979,1719697863904,-500.0,0.00013808,3]
[330662980,1719697863914,-844.99,0.00013808,3]
[330662981,1719697863924,-5131.41,0.00013808,3]
[330662982,1719697863935,-871.12,0.00013808,3]
[330662983,1719697863946,-2484.8,0.00013808,3]
[330662984,1719697863956,-500.0,0.00013808,3]
[330662985,1719697863966,-1085.2,0.00013808,3]
[330662986,1719697863976,-500.0,0.00013808,3]
[330662987,1719697863986,-500.0,0.00013808,3]
[330662988,1719697863996,-1427.19,0.00013808,3]
[330662989,1719697864006,-500.0,0.00013808,3]
[330662990,1719697864015,-2549.66,0.00013808,3]
[330662991,1719697864023,-152.324312,0.00013808,2]
[330662992,1719697864034,-500.0,0.00013808,3]
[330662993,1719697864045,-500.0,0.00013808,3]
[330662994,1719697864056,-695.57,0.00013808,3]
[330662995,1719697864065,-1016.52,0.00013808,3]
[330662996,1719697864078,-500.0,0.00013808,3]
[330662997,1719697864089,-500.0,0.00013808,3]
[330662998,1719697864103,-500.0,0.00013808,3]
[330662999,1719697864115,-533.37,0.00013808,3]
[330663000,1719697864124,-2382.38,0.00013808,3]
[330663001,1719697864133,-930.48,0.00013808,3]
[330663002,1719697864143,-1893.42,0.00013808,3]
[330663003,1719697864153,-500.0,0.00013808,3]
[330663004,1719697864162,-1984.05,0.00013808,3]
[330663005,1719697864172,-613.33,0.00013808,3]
[330663006,1719697864181,-561.25,0.00013808,3]
[330663007,1719697864192,-500.0,0.00013808,3]
[330663008,1719697864201,-500.0,0.00013808,3]
[330663009,1719697864211,-500.0,0.00013808,3]
[330663010,1719697864220,-500.0,0.00013808,3]
[330663011,1719697864230,-1247.74,0.00013808,3]
[330663012,1719697864239,-1215.25,0.00013808,3]
[330663013,1719697864248,-2075.91,0.00013808,3]
[330663014,1719697864258,-500.0,0.00013808,3]
[330663015,1719697864267,-666.38,0.00013808,3]
[330663016,1719697864277,-500.0,0.00013808,3]
[330663017,1719697864286,-1690.88,0.00013808,3]
[330663018,1719697864295,-500.0,0.00013808,3]
[330663019,1719697864304,-3206.93,0.00013808,3]
[330663020,1719697864313,-1254.35,0.00013808,3]
[330663021,1719697864323,-1508.98,0.00013808,3]
[330663022,1719697864332,-672.66,0.00013808,3]
[330663023,1719697864344,-500.0,0.00013808,3]
[330663024,1719697864354,-500.0,0.00013808,3]
[330663025,1719697864367,-854.38,0.00013808,3]
[330663026,1719697864380,-1295.44,0.00013808,3]
[330663027,1719697864389,-1061.13,0.00013808,3]
[330663028,1719697864398,-1169.05,0.00013808,3]
[330663029,1719697864408,-911.66,0.00013808,3]
[330663030,1719697864418,-500.0,0.00013808,3]
[330663031,1719697864427,-500.0,0.00013808,3]
[330663032,1719697864437,-844.35,0.00013808,3]
[330663033,1719697864447,-658.44,0.00013808,3]
[330663034,1719697864461,-500.0,0.00013808,3]
[330663035,1719697864471,-597.33,0.00013808,3]
[330663036,1719697864480,-500.0,0.00013808,3]
[330663037,1719697864490,-873.63,0.00013808,3]
[330663038,1719697864499,-918.03,0.00013808,3]
[330663039,1719697864508,-500.0,0.00013808,3]
[330663040,1719697864517,-500.0,0.00013808,3]
[330663041,1719697864527,-1884.45,0.00013808,3]
[330663042,1719697864537,-500.0,0.00013808,3]
[330663043,1719697864546,-3902.11,0.00013808,3]
[330663044,1719697864556,-2299.96,0.00013808,3]
[330663045,1719697864565,-772.5,0.00013808,3]
[330663046,1719697864574,-1527.8,0.00013808,3]
[330663047,1719697864584,-1870.97,0.00013808,3]
[330663048,1719697864594,-500.0,0.00013808,3]
[330663049,1719697864603,-2490.2,0.00013808,3]
[330663050,1719697864612,-846.22,0.00013808,3]
[330663051,1719697864621,-872.98,0.00013808,3]
[330663052,1719697864631,-500.0,0.00013808,3]
[330663053,1719697864640,-2161.66,0.00013808,3]
[330663054,1719697864650,-500.0,0.00013808,3]
[330663055,1719697864659,-604.3,0.00013808,3]
[330663056,1719697864668,-847.11,0.00013808,3]
[330663057,1719697864677,-500.0,0.00013808,3]
[330663058,1719697864687,-500.0,0.00013808,3]
[330663059,1719697864696,-500.0,0.00013808,3]
[330663060,1719697864705,-500.0,0.00013808,3]
[330663061,1719697864715,-582.17,0.00013808,3]
[330663062,1719697864724,-588.89,0.00013808,3]
[330663063,1719697864733,-3519.63,0.00013808,3]
[330663064,1719697864743,-500.0,0.00013808,3]
[330663065,1719697864752,-500.0,0.00013808,3]
[330663066,1719697864761,-2599.7,0.00013808,3]
[330663067,1719697864770,-500.0,0.00013808,3]
[330663068,1719697864780,-265.40779204,0.00013808,3]
[330663069,1719697864789,-500.0,0.00013808,3]
[330663070,1719697864798,-1281.86,0.00013808,3]
[330663071,1719697864808,-2658.38,0.00013808,3]
[330663072,1719697864817,-534.39,0.00013808,3]
[330663073,1719697864827,-1914.74,0.00013808,3]
[330663074,1719697864836,-500.0,0.00013808,3]
[330663075,1719697864846,-500.0,0.00013808,3]
[330663076,1719697864855,-1427.54,0.00013808,3]
[330663077,1719697864864,-9938.18,0.00013808,3]
[330663078,1719697864873,-749.22,0.00013808,3]
[330663079,1719697864883,-1236.84,0.00013808,3]
[330663080,1719697864892,-2257.43,0.00013808,3]
[330663081,1719697864901,-500.0,0.00013808,3]
[330663082,1719697864911,-500.0,0.00013808,3]
[330663083,1719697864920,-1289.53,0.00013808,3]
[330663084,1719697864930,-500.0,0.00013808,3]
[330663085,1719697864939,-3361.9,0.00013808,3]
[330663086,1719697864948,-933.0,0.00013808,3]
[330663087,1719697864958,-500.0,0.00013808,3]
[330663088,1719697864967,-500.0,0.00013808,3]
[330663089,1719697864976,-1659.26,0.00013808,3]
[330663090,1719697864986,-3107.67,0.00013808,3]
[330663091,1719697864996,-505.25,0.00013808,3]
[330663092,1719697865005,-500.0,0.00013808,3]
[330663093,1719697865015,-500.0,0.00013808,3]
[330663094,1719697865024,-500.0,0.00013808,3]
[330663095,1719697865033,-1031.14,0.00013808,3]
[330663096,1719697865043,-500.0,0.00013808,3]
[330663097,1719697865052,-500.0,0.00013808,3]
[330663098,1719697865061,-500.0,0.00013808,3]
[330663099,1719697865070,-2081.24,0.00013808,3]
[330663100,1719697865079,-22088.54,0.00013808,3]
[330663101,1719697865088,-500.0,0.00013808,3]
[330663102,1719697865098,-5023.6,0.00013808,3]
[330663103,1719697865107,-608.32,0.00013808,3]
[330663104,1719697865117,-801.09,0.00013808,3]
[330663105,1719697865126,-1971.0,0.00013808,3]
[330663106,1719697865136,-574.5,0.00013808,3]
[330663107,1719697865145,-3016.9,0.00013808,3]
[330663108,1719697865155,-794.3,0.00013808,3]
[330663109,1719697865164,-1567.25,0.00013808,3]
[330663110,1719697865173,-1045.65,0.00013808,3]
[330663111,1719697865184,-1134.29,0.00013808,3]
[330663112,1719697865194,-1963.59,0.00013808,3]
[330663113,1719697865203,-1149.35,0.00013808,3]
[330663114,1719697865212,-7724.48,0.00013808,3]
[330663115,1719697865222,-500.0,0.00013808,3]
[330663116,1719697865231,-7929.21,0.00013808,3]
[330663117,1719697865240,-500.0,0.00013808,3]
[330663118,1719697865249,-1201.55,0.00013808,3]
[330663119,1719697865259,-757.6,0.00013808,3]
[330663120,1719697865268,-1529.23,0.00013808,3]
[330663121,1719697865277,-1234.75,0.00013808,3]
[330663122,1719697865287,-1878.19,0.00013808,3]
[330663123,1719697865296,-500.0,0.00013808,3]
[330663124,1719697865305,-691.0,0.00013808,3]
[330663125,1719697865314,-2814.02,0.00013808,3]
[330663126,1719697865324,-500.0,0.00013808,3]
[330663127,1719697865333,-500.0,0.00013808,3]
[330663128,1719697865343,-500.0,0.00013808,3]
[330663129,1719697865352,-3153.71,0.00013808,3]
[330663130,1719697865361,-1264.25,0.00013808,3]
[330663131,1719697865372,-945.84,0.00013808,3]
[330663132,1719697865382,-500.0,0.00013808,3]
[330663133,1719697865392,-500.0,0.00013808,3]
[330663134,1719697865401,-500.0,0.00013808,3]
[330663135,1719697865410,-250.07350581,0.00013808,3]
[330663136,1719697865421,-611.70104019,0.00013808,3]
[330663137,1719697865430,-725.8,0.00013808,3]
[330663138,1719697865440,-393.54153334,0.00013808,3]
[330663139,1719697865451,-844.67,0.00013808,3]
[330663140,1719697865460,-2776.06,0.00013808,3]
[330663141,1719697865469,-1599.88,0.00013808,3]
[330663142,1719697865479,-1177.78,0.00013808,3]
[330663143,1719697865488,-902.09,0.00013808,3]
[330663144,1719697865498,-1529.45,0.00013808,3]
[330663145,1719697865507,-531.92,0.00013808,3]
[330663146,1719697865517,-743.44,0.00013808,3]
[330663147,1719697865526,-574.2,0.00013808,3]
[330663148,1719697865536,-500.0,0.00013808,3]
[330663149,1719697865547,-1862.69,0.00013808,3]
[330663150,1719697865556,-2338.68,0.00013808,3]
[330663151,1719697865565,-500.0,0.00013808,3]
[330663152,1719697865575,-500.0,0.00013808,3]
[330663153,1719697865585,-500.0,0.00013808,3]
[330663154,1719697865595,-500.0,0.00013808,3]
[330663155,1719697865604,-561.21,0.00013808,3]
[330663156,1719697865613,-2684.36,0.00013808,3]
[330663157,1719697865622,-1258.1,0.00013808,3]
[330663158,1719697865632,-500.0,0.00013808,3]
[330663159,1719697865641,-500.0,0.00013808,3]
[330663160,1719697865650,-865.21,0.00013808,3]
[330663161,1719697865660,-500.0,0.00013808,3]
[330663162,1719697865669,-1191.09,0.00013808,3]
[330663163,1719697865678,-621.67491572,0.00013808,3]
[330663164,1719697865687,-500.0,0.00013808,3]
[330663165,1719697865696,-500.0,0.00013808,3]
[330663166,1719697865705,-500.0,0.00013808,3]
[330663167,1719697865714,-1259.89,0.00013808,3]
[330663168,1719697865724,-500.0,0.00013808,3]
[330663169,1719697865733,-500.0,0.00013808,3]
[330663170,1719697865742,-726.84,0.00013808,3]
[330663171,1719697865752,-500.0,0.00013808,3]
[330663172,1719697865761,-894.84,0.00013808,3]
[330663173,1719697865770,-5502.95,0.00013808,3]
[330663174,1719697865779,-500.0,0.00013808,3]
[330663175,1719697865789,-804.55,0.00013808,3]
[330663176,1719697865798,-1767.86,0.00013808,3]
[330663177,1719697865807,-645.52,0.00013808,3]
[330663178,1719697865816,-500.0,0.00013808,3]
[330663179,1719697865825,-1866.94,0.00013808,3]
[330663180,1719697865836,-545.65,0.00013808,3]
[330663181,1719697865845,-528.33,0.00013808,3]
[330663182,1719697865854,-765.3,0.00013808,3]
[330663183,1719697865863,-500.0,0.00013808,3]
[330663184,1719697865872,-1285.81,0.00013808,3]
[330663185,1719697865881,-1267.3,0.00013808,3]
[330663186,1719697865891,-500.0,0.00013808,3]
[330663187,1719697865900,-417.44471637,0.00013808,3]
[330663188,1719697865909,-299.77933602,0.00013808,3]
[330663189,1719697865919,-825.44,0.00013808,3]
[330663190,1719697865928,-500.0,0.00013808,3]
[330663191,1719697865937,-250.0,0.00013808,3]
[330663192,1719697865946,-623.61,0.00013808,3]
[330663193,1719697865955,-880.44,0.00013808,3]
[330663194,1719697865964,-806.06,0.00013808,3]
[330663195,1719697865974,-3596.23,0.00013808,3]
[330663196,1719697865983,-588.77,0.00013808,3]
[330663197,1719697865992,-500.0,0.00013808,3]
[330663198,1719697866002,-500.0,0.00013808,3]
[330663199,1719697866011,-1703.73,0.00013808,3]
[330663200,1719697866020,-627.61,0.00013808,3]
[330663201,1719697866029,-500.0,0.00013808,3]
[330663202,1719697866038,-1606.7,0.00013808,3]
[330663203,1719697866047,-659.8,0.00013808,3]
[330663204,1719697866056,-500.0,0.00013808,3]
[330663205,1719697866066,-6175.57,0.00013808,3]